{"text_format":"1","workbook":"xlsx","n_sheets":5,"sheets":["様式取り扱い","作成準備","QR","請求書（表紙）","請求書入力例"],"not_rendered":{"charts":0,"images":7,"macros":1,"external_links":0,"defined_names":2,"comments":0,"pivot_tables":0},"unopened":[],"bounds":{"document_bytes":16777216,"sheet_cells":100000,"rows_first":2000,"rows_last":500,"rows_between":2000,"halvings":0,"cell_chars":16384,"cell_head_chars":4096},"cells_cut":0,"cells_raw":0,"read":"whole","date_system":"1900"}

{"sheet":"様式取り扱い","index":0,"n_rows":37,"n_cols":2,"rows_kept":37,"cut":false,"hidden":false,"merged":[[34,0,34,1],[1,0,1,1],[2,0,2,1],[4,0,4,1],[12,0,12,1],[27,0,27,1]]}
[null,"2023-06-19"]
["指定請求書様式の取り扱いについて"]
["－工事請負用－"]
[null,"株式会社福田組　財務管理室"]
["１．様式について"]
[null,"本請求書は、株式会社福田組のお取引先専用様式です。"]
[null,"工事請負の請求には必ず本様式をお使い下さい。"]
[null,"契約等により、取引先登録が必要な場合は、請求書提出前までに、取引先登録を完了して下さい。"]
[null,"なお、「請求書（表紙）」のＤ欄の出来高内訳欄には、契約の「見積・注文・出来高」（福田組指定エクセル書式）の"]
[null,"出来高報告書の値を転記して下さい。"]
[null,"工事完成時は、出来高報告書の「工事完成（出来高100％）時記入」欄の「工事目的物完成通知日」を記入し、"]
[null,"弊社工事所長へご提出下さい。"]
["２．入力について"]
[null,"各ワークシートの入力箇所を白抜きで表示しておりますので、必要事項を漏れなくご入力下さい"]
[]
[null,"【取引先コード登録済みのお取引先】"]
[null,"「取引先コード」により口座を特定し、登録の口座へお振込み致しますので、コードを取得している場合は、"]
[null,"必ず「取引先コード」をご入力下さい。当請求書様式の振込先銀行口座欄に登録と異なった振込先を指定して"]
[null,"ご提出頂いた場合も、登録先の口座へのお振込となりますのでご了承下さい。"]
[null,"振込先銀行口座の変更は、当社ホームページの「登録内容の変更」からご変更下さい。"]
[null,"なお、コードが不明な場合は、お手数ですが弊社管理部の担当者までお問い合わせ下さい。"]
[]
[null,"【取引先コードを取得していないお取引先】"]
[null,"「取引先コード」を取得されていない場合は、「取引先コード」欄を空欄とし、振込先銀行口座情報を必ず"]
[null,"ご入力下さい。"]
[null,"ワークシート「請求書（表紙）」は、<本支店提出用><現場保管用><支店保管用>の３ページで構成されています。"]
[null,"<本支店提出用>の必要事項を入力すると、他ページに転記されます。"]
["３．提出および提出部数について"]
[null,"提出先により、必要な部数が異なります。"]
[null,"＜提出先＞"]
[null,"新潟県内支店管轄の工事・部署への提出の場合  　… ３部（本支店提出用・現場保管用・支店保管用）"]
[null,"上記以外の本支店管轄の工事・部署へ提出の場合  … ２部（本支店提出用・現場保管用）"]
[null,"毎月の提出は末日締の翌月３日までに、発注等依頼のあった現場・部門あてに直接ご提出（必着）いただきますよう"]
[null,"お願い致します。また、締日にかかわらず、できるだけ早期にご提出いただきますようお願い致します。"]
["４．請求書の社印押印について"]
[null,"請求書の左上に＜本社提出用＞とあるページが正本ですので、必ず社印の押印をお願い致します。"]
[null,"社印の無い請求書は受け付けることができませんのでご注意下さい。"]

{"sheet":"作成準備","index":1,"n_rows":43,"n_cols":17,"rows_kept":43,"cut":false,"hidden":false,"merged":[[8,2,8,8],[35,2,35,8],[36,2,36,8],[37,2,37,9],[34,2,34,8],[2,1,2,6],[29,2,29,9],[26,2,26,9],[30,2,30,9],[33,2,33,8],[25,2,25,3],[23,2,23,9],[24,2,24,9],[5,1,5,3],[5,4,5,5],[25,5,25,8],[14,2,14,5]]}
[null,"請求書作成準備"]
[]
[null,"以下の白いセルにのみ、ご入力下さい。"]
[]
[null,"使用の有無をご選択下さい。"]
[null,"　請求書の貴社名にゴム印を使用",null,null,"しない"]
[]
[null,"貴社の取引先コードをご入力下さい。(例：1234567)",null,null,null,null,null,"※取引先コードが6桁の場合、先頭に\"0\"を付して下さい。"]
[null,"取引先コード（７桁）"]
[null,"※取引先コードが不明な場合は、弊社担当者までお問い合わせ下さい。"]
[null,"※取引先コードを取得していない場合は空欄として下さい。"]
[null,"　 その場合は、振込先口座番号を必ずご入力下さい。"]
[]
[null,{"$f":"IF(C9<>\"\",\"取引先コードの入力がある場合、登録番号等は入力不要です。\",\"インボイス制度に係る貴社の情報をご入力下さい。\")","v":"インボイス制度に係る貴社の情報をご入力下さい。"}]
[null,"適格請求書発行事業者","ではない"]
[null,"適格請求書発行事業者登録番号","T",null,null,null,null,null,null,null,null,null,null,null,null,null,{"$f":"IF(C9<>\"\",\"\",IF(C15=\"ではない\",\"\",_xlfn.IFS(D16=\"\",\"登録番号をご入力下さい\",E16=\"\",\"登録番号をご入力下さい\",F16=\"\",\"登録番号をご入力下さい\",G16=\"\",\"登録番号をご入力下さい\",H16=\"\",\"登録番号をご入力下さい\",I16=\"\",\"登録番号をご入力下さい\",J16=\"\",\"登録番号をご入力下さい\",K16=\"\",\"登録番号をご入力下さい\",L16=\"\",\"登録番号をご入力下さい\",M16=\"\",\"登録番号をご入力下さい\",N16=\"\",\"登録番号をご入力下さい\",O16=\"\",\"登録番号をご入力下さい\",P16=\"\",\"登録番号をご入力下さい\",C15=\"である\",\"\")))","v":""}]
[null,"※インボイス制度の詳細は、国税庁のホームページをご確認下さい。"]
[null,"※取引先コードの記載がある場合、登録番号の記載は不要となりますので、請求書には表示されません。"]
[null,"※消費税の免税事業者、または、課税事業者だが適格請求書発行事業者登録がお済でない場合、"]
[null,"「適格請求書発行事業者ではない」をご選択下さい。"]
[null,"※「適格請求書発行事業者である」場合、登録番号をご入力ください。"]
[]
[null,"貴社名（商号）、代表者、ご住所についてご入力下さい。"]
[null,"会社名（商号）"]
[null,"代表者（役職・氏名）"]
[null,"郵　便　番　号",null,null,"-"]
[null,"住　　　　所"]
[]
[null,"お電話番号、ご担当者についてご入力下さい。"]
[null,"電話番号（連絡先）"]
[null,"ご担当者（所属・氏名）"]
[]
[null,"振込先銀行口座"]
[null,"銀行名",null,null,null,null,null,null,null,"例：○○銀行"]
[null,"店名",null,null,null,null,null,null,null,"例：本店、本店営業部、○○支店"]
[null,"預金種別",null,null,null,null,null,null,null,"例：普通、当座"]
[null,"口座番号"]
[null,"口座名義",null,null,null,null,null,null,null,null,"例：カ）フクダグミ"]
[]
[null,"※ご登録の振込先口座の変更は、「取引先登録兼支払依頼書」を弊社担当者まで"]
[null," 　ご提出下さい。取引先コードが無い場合は、振込先口座を上記に必ずご入力下さい。"]
[null,"※口座名義は、全角カナで入力し、ご通帳の表紙裏面に記載の口座名義を正確にご入力下さい。"]
[null,"　 カナ大文字、英字大文字、数字、スペース、｢、｣、-、(、)、\\、.、/　以外の文字を使用しないで下さい。"]

{"sheet":"QR","index":2,"n_rows":8,"n_cols":4,"rows_kept":8,"cut":false,"hidden":true,"merged":[]}
["請求書（表紙）"]
["パラメータ",{"$f":"IF('請求書（表紙）'!U29='請求書（表紙）'!U32,\"0\",\"1\")","v":"0"}]
["仕入先CD",{"$f":"IF(D3=\"\",\"0000000\",TEXT(D3,\"0000000\"))","v":"0000000"},null,{"$f":"'請求書（表紙）'!AU4&'請求書（表紙）'!AY4&'請求書（表紙）'!AZ4&'請求書（表紙）'!BC4&'請求書（表紙）'!BF4&'請求書（表紙）'!BJ4&'請求書（表紙）'!BM4","v":""}]
["注文番号",{"$f":"IF(D4=\"\",\"00000000000\",TEXT(D4,\"00000000000\"))","v":"00000000000"},null,{"$f":"'請求書（表紙）'!N20 & '請求書（表紙）'!Q20 & '請求書（表紙）'!T20 & '請求書（表紙）'!W20 & '請求書（表紙）'!Z20 & '請求書（表紙）'!AC20 & '請求書（表紙）'!AF20 & '請求書（表紙）'!AI20 & '請求書（表紙）'!AL20 & '請求書（表紙）'!AO20 & '請求書（表紙）'!AR20","v":""}]
["累計出来高",{"$f":"TEXT('請求書（表紙）'!U29,\"0000000000\")","v":"0000000000"}]
["請求額",{"$f":"TEXT('請求書（表紙）'!BI28,\"0000000000\")","v":"0000000000"}]
["結合",{"$f":"B2&B3&B4&B5&B6","v":"000000000000000000000000000000000000000"}]
["結合",{"$f":"IF(B5=\"0000000000\",\"\",B2&B3&B4&B5&B6)","v":""}]

{"sheet":"請求書（表紙）","index":3,"n_rows":135,"n_cols":68,"rows_kept":135,"cut":false,"hidden":false,"merged":[[79,4,79,38],[128,4,128,38],[80,15,80,18],[81,4,81,19],[17,43,17,66],[65,3,65,9],[114,3,114,9],[118,40,118,42],[107,43,107,64],[69,28,69,30],[69,31,69,33],[69,34,69,36],[69,37,69,39],[81,20,81,37],[80,42,80,59],[69,22,69,24],[79,46,79,59],[109,47,109,66],[110,47,110,66],[107,3,108,24],[108,27,108,33],[108,43,108,64],[76,40,77,41],[78,40,79,41],[79,60,79,67],[80,60,80,67],[81,60,81,67],[22,42,25,45],[24,48,24,57],[22,48,22,57],[55,43,55,44],[58,43,58,64],[56,43,57,66],[67,43,67,66],[61,47,61,66],[76,48,76,57],[77,46,77,59],[78,48,78,57],[62,43,62,58],[62,59,62,66],[25,2,25,3],[26,40,27,41],[28,40,29,41],[26,27,26,28],[26,6,26,18],[30,7,30,9],[30,10,30,14],[76,21,76,26],[76,27,76,28],[62,21,62,36],[76,6,76,18],[74,13,74,15],[74,16,74,17],[26,21,26,26],[40,9,40,10],[26,2,28,3],[43,34,46,36],[29,2,31,3],[29,4,29,38],[69,16,69,18],[69,19,69,21],[24,40,25,41],[25,20,25,37],[25,6,25,18],[64,3,64,9],[64,13,64,36],[65,43,65,66],[66,3,66,9],[66,13,66,36],[66,43,66,66],[43,3,46,4],[31,20,31,37],[31,4,31,19],[40,3,40,8],[43,19,46,20],[26,29,26,32],[5,45,5,47],[55,45,55,47],[55,48,55,49],[59,43,59,64],[10,43,10,46],[25,60,25,67],[5,43,5,44],[15,43,15,66],[11,43,11,46],[16,43,16,66],[23,47,23,58],[19,43,19,45],[19,46,19,47],[25,52,25,53],[29,46,29,59],[30,60,30,67],[12,43,12,58],[12,59,12,66],[26,42,29,45],[9,27,9,33],[22,40,23,41],[0,70,0,72],[3,51,3,53],[3,54,3,56],[29,60,29,67],[6,43,7,66],[7,67,7,68],[22,68,23,68],[8,43,8,64],[9,43,9,64],[23,60,23,67],[11,47,11,66],[10,47,10,66],[26,48,26,57],[28,48,28,57],[27,46,27,59],[28,68,29,68],[0,55,0,61],[3,46,3,49],[3,57,3,60],[3,61,3,63],[1,0,1,69],[24,68,25,68],[19,40,19,42],[5,48,5,49],[8,3,9,24],[19,19,19,21],[19,22,19,24],[19,25,19,27],[19,28,19,30],[19,31,19,33],[23,20,23,37],[24,20,24,37],[22,2,22,38],[24,2,24,3],[19,13,19,15],[19,16,19,18],[19,37,19,39],[16,3,16,9],[16,13,16,36],[15,3,15,9],[14,3,14,9],[12,3,12,9],[12,13,12,20],[12,21,12,36],[14,13,14,36],[19,3,19,9],[19,34,19,36],[46,70,46,72],[44,70,44,72],[45,70,45,72],[43,70,43,72],[42,70,42,72],[21,2,21,68],[23,2,23,3],[40,44,40,45],[31,60,31,67],[30,40,31,41],[30,42,30,59],[31,42,31,59],[40,46,40,48],[40,13,40,17],[30,15,30,18],[32,70,32,72],[40,39,40,43],[30,68,31,68],[24,16,24,17],[24,13,24,15],[23,6,23,18],[27,6,28,18],[27,60,27,67],[28,20,28,37],[50,70,50,72],[51,0,51,69],[53,46,53,49],[53,51,53,53],[53,54,53,56],[53,57,53,60],[50,55,50,61],[53,61,53,63],[74,68,75,68],[69,13,69,15],[61,43,61,46],[74,40,75,41],[57,67,57,68],[60,43,60,46],[59,27,59,33],[69,3,69,9],[58,3,59,24],[73,2,73,3],[73,6,73,18],[71,2,71,68],[60,47,60,66],[69,25,69,27],[62,3,62,9],[62,13,62,20],[80,68,81,68],[73,60,73,67],[72,2,72,38],[74,2,74,3],[74,20,74,37],[75,2,75,3],[75,6,75,18],[75,20,75,37],[74,48,74,57],[72,48,72,57],[75,60,75,67],[75,52,75,53],[79,2,81,3],[80,7,80,9],[80,10,80,14],[76,2,78,3],[81,42,81,59],[78,68,79,68],[72,68,73,68],[73,20,73,37],[72,40,73,41],[72,42,75,45],[73,47,73,58],[80,40,81,41],[99,70,99,72],[82,70,82,72],[106,67,106,68],[100,0,100,69],[102,46,102,49],[102,51,102,53],[102,54,102,56],[102,57,102,60],[102,61,102,63],[104,43,104,44],[105,43,106,66],[90,3,90,8],[90,9,90,10],[90,13,90,17],[90,39,90,43],[90,44,90,45],[90,46,90,48],[99,55,99,61],[104,45,104,47],[104,48,104,49],[129,40,130,41],[125,27,125,28],[125,29,125,32],[131,70,131,72],[129,68,130,68],[123,68,124,68],[127,68,128,68],[130,60,130,67],[128,60,128,67],[129,60,129,67],[127,48,127,57],[121,42,124,45],[125,42,128,45],[125,48,125,57],[124,60,124,67],[129,42,129,59],[128,46,128,59],[124,52,124,53],[126,60,126,67],[121,48,121,57],[123,48,123,57],[121,68,122,68],[121,40,122,41],[115,3,115,9],[139,3,139,8],[139,9,139,10],[139,13,139,17],[139,39,139,43],[139,44,139,45],[139,46,139,48],[128,2,130,3],[125,2,127,3],[130,4,130,19],[130,20,130,37],[129,15,129,18],[126,6,127,18],[127,20,127,37],[129,7,129,9],[129,10,129,14],[125,6,125,18],[130,42,130,59],[125,21,125,26],[126,46,126,59],[125,40,126,41],[127,40,128,41],[124,2,124,3],[124,6,124,18],[118,43,118,45],[124,20,124,37],[118,28,118,30],[118,31,118,33],[118,34,118,36],[123,20,123,37],[122,60,122,67],[123,13,123,15],[123,16,123,17],[120,2,120,68],[122,20,122,37],[122,47,122,58],[123,2,123,3],[121,2,121,38],[118,13,118,15],[118,16,118,18],[118,19,118,21],[118,22,118,24],[122,6,122,18],[118,3,118,9],[122,2,122,3],[123,40,124,41],[115,13,115,36],[115,43,115,66],[116,43,116,66],[118,46,118,47],[69,46,69,47],[111,3,111,9],[111,13,111,20],[111,21,111,36],[111,43,111,58],[111,59,111,66],[113,3,113,9],[113,13,113,36],[114,43,114,66],[118,25,118,27],[77,6,78,18],[78,20,78,37],[76,29,76,32],[77,60,77,67],[76,42,79,45],[110,43,110,46],[109,43,109,46],[118,37,118,39],[69,40,69,42],[69,43,69,45]]}
[null,null,"<本支店提出用>",null,null,null,null,null,null,null,null,null,null,null,null,null,null,null,null,null,null,null,null,null,null,null,null,null,null,null,null,null,null,null,null,null,null,null,null,null,null,null,null,null,null,null,null,null,null,null,null,null,null,null,null,null,null,null,null,null,null,null,"年",null,null,"月",null,"日"]
["請　求　書　（工事請負）"]
[{"$f":"AU4&AY4&AZ4&BC4&BF4&BJ4&BM4&N20&Q20&T20&W20&Z20&AC20&AF20&AI20&AL20&AO20&AR20&BI32","v":"0"},null,"株式会社　福田組　御 中"]
[null,null,null,null,null,null,null,null,null,null,null,null,null,null,null,null,null,null,null,null,null,null,null,null,null,null,null,null,null,null,null,null,null,null,null,"取引先コード",null,null,null,null,null,null,null,null,null,null,{"$f":"IF(+作成準備!C9=\"\",\"\",LEFT(作成準備!C9,1))","v":""},null,null,null,{"$f":"IF(+作成準備!C9=\"\",\"\",MID(作成準備!C9,2,1))","v":""},{"$f":"IF(+作成準備!C9=\"\",\"\",MID(作成準備!C9,3,1))","v":""},null,null,{"$f":"IF(+作成準備!C9=\"\",\"\",MID(作成準備!C9,4,1))","v":""},null,null,{"$f":"IF(+作成準備!C9=\"\",\"\",MID(作成準備!C9,5,1))","v":""},null,null,null,{"$f":"IF(+作成準備!C9=\"\",\"\",MID(作成準備!C9,6,1))","v":""},null,null,{"$f":"IF(+作成準備!C9=\"\",\"\",MID(作成準備!C9,7,1))","v":""}]
[]
[null,null,null,null,null,null,null,null,null,null,null,null,null,null,null,null,null,null,null,null,null,null,null,null,null,null,null,null,null,null,null,null,null,null,null,null,null,null,null,null,null,null,null,"〒",null,{"$f":"IF(作成準備!E6=\"しない\",+作成準備!C26,\"\")","v":0},null,null,"-",null,{"$f":"IF(作成準備!E6=\"しない\",+作成準備!F26,\"\")","v":0}]
[null,null,null,null,null,null,null,null,null,null,null,null,null,null,null,null,null,null,null,null,null,null,null,null,null,null,null,null,null,null,null,null,null,null,null,null,null,null,"住所",null,null,null,null,{"$f":"IF(作成準備!E6=\"しない\",+作成準備!C27,\"\")","v":0}]
[null,null,null,"下記の金額を請求します。"]
[null,null,null,{"$f":"+BI32","v":0},null,null,null,null,null,null,null,null,null,null,null,null,null,null,null,null,null,null,null,null,null,null,null,null,null,null,null,null,null,null,null,null,null,null,"氏名",null,null,null,null,{"$f":"IF(作成準備!E6=\"しない\",+作成準備!C24,\"\")","v":0}]
[null,null,null,null,null,null,null,null,null,null,null,null,null,null,null,null,null,null,null,null,null,null,null,null,null,null,null,null,null,null,null,null,null,null,null,null,null,null,null,null,null,null,null,{"$f":"IF(作成準備!E6=\"しない\",+作成準備!C25,\"\")","v":0},null,null,null,null,null,null,null,null,null,null,null,null,null,null,null,null,null,null,null,null,null,null,"㊞"]
[null,null,null,null,null,null,null,null,null,null,null,null,null,null,null,null,null,null,null,null,null,null,null,null,null,null,null,null,null,null,null,null,null,null,null,null,null,null,null,null,null,null,null,"電　話",null,null,null,{"$f":"+作成準備!C30","v":0}]
[null,null,null,null,null,null,null,null,null,null,null,null,null,null,null,null,null,null,null,null,null,null,null,null,null,null,null,null,null,null,null,null,null,null,null,null,null,null,null,null,null,null,null,"担当者",null,null,null,{"$f":"+作成準備!C31","v":0}]
[null,null,null,"工事名",null,null,null,null,null,null,null,null,null,null,null,null,null,null,null,null,null,null,null,null,null,null,null,null,null,null,null,null,null,null,null,null,null,null,null,null,null,null,null,{"$f":"IF(AND(AU4<>\"\",AY4<>\"\",AZ4<>\"\",BC4<>\"\",BF4<>\"\",BJ4<>\"\",BM4<>\"\"),\"\",IF(作成準備!C15=\"ではない\",\"適格請求書発行事業者未登録\",\"適格請求書発行事業者登録番号\"))","v":"適格請求書発行事業者未登録"},null,null,null,null,null,null,null,null,null,null,null,null,null,null,null,{"$f":"IF(AR13=\"適格請求書発行事業者未登録\",\"\",(IF(AR13=\"\",\"\",\"T\"&作成準備!D16&作成準備!E16&作成準備!F16&作成準備!G16&作成準備!H16&作成準備!I16&作成準備!J16&作成準備!K16&作成準備!L16&作成準備!M16&作成準備!N16&作成準備!O16&作成準備!P16)))","v":""}]
[null,null,null,null,null,null,null,null,null,null,null,null,null,null,null,null,null,null,null,null,null,null,null,null,null,null,null,null,null,null,null,null,null,null,null,null,null,null,null,null,null,null,null,null,null,null,null,null,null,null,null,null,null,null,null,null,null,null,null,null,null,null,null,null,null,null,{"$f":"IF(作成準備!Q16=\"登録番号をご入力下さい\",\"【エラー】登録番号が未設定です。\",\"\")","v":""}]
[null,null,null,"工事内容",null,null,null,null,null,null,null,null,null,null,null,null,null,null,null,null,null,null,null,null,null,null,null,null,null,null,null,null,null,null,null,null,null,null,null,null,null,null,null,"振込先銀行口座",null,null,null,null,null,null,null,{"$f":"IF(BJ4=\"\",IF(作成準備!C34&作成準備!C35&作成準備!C36&作成準備!C37&作成準備!C38=\"\",\"【エラー】振込先銀行口座が未設定です。\",\"\"),\"\")","v":"【エラー】振込先銀行口座が未設定です。"}]
[null,null,null,null,null,null,null,null,null,null,null,null,null,null,null,null,null,null,null,null,null,null,null,null,null,null,null,null,null,null,null,null,null,null,null,null,null,null,null,null,null,null,null,{"$f":"IF(作成準備!C34=\"\",\"金融機関：　　　　　　　　　　　　店名：\",\"金融機関： \"& 作成準備!C34&\"　　　店名： \"&作成準備!C35&\"　\")","v":"金融機関：　　　　　　　　　　　　店名："}]
[null,null,null,"工事場所",null,null,null,null,null,null,null,null,null,null,null,null,null,null,null,null,null,null,null,null,null,null,null,null,null,null,null,null,null,null,null,null,null,null,null,null,null,null,null,{"$f":"IF(作成準備!C36=\"\",\"預金種別：　　　　　　　  　口座番号：\",\"預金種別：　\"&作成準備!C36& \"　　口座番号： \" &作成準備!C37)","v":"預金種別：　　　　　　　  　口座番号："}]
[null,null,null,null,null,null,null,null,null,null,null,null,null,null,null,null,null,null,null,null,null,null,null,null,null,null,null,null,null,null,null,null,null,null,null,null,null,null,null,null,null,null,null,{"$f":"\"口座名義： \"&DBCS(作成準備!C38)","v":"口座名義： "}]
[]
[null,null,null,"注文書番号"]
[]
[null,null,"今　　回　　請　　求　　額　　算　　定　　内　　訳"]
[null,null,"上 記 契 約 コ ー ド の 契 約 累 計 金 額",null,null,null,null,null,null,null,null,null,null,null,null,null,null,null,null,null,null,null,null,null,null,null,null,null,null,null,null,null,null,null,null,null,null,null,null,null,"Ｆ",null,"前回\nまで\n累計",null,null,null,null,null,"請求額（税抜）"]
[null,null,"A",null,"工 　  事　   価    格",null,"工事価格",null,null,null,null,null,null,null,null,null,null,null,null,null,null,null,null,null,null,null,null,null,null,null,null,null,null,null,null,null,null,null,null,null,null,null,null,null,null,null,null,"（前回のＥの欄を転記）"]
[null,null,"B",null,null,null,"消費税等",null,null,null,"(A×",null,null,10,null,null,"％",null,")",null,{"$f":"TRUNC(U24*10/100)","v":0},null,null,null,null,null,null,null,null,null,null,null,null,null,null,null,null,null,null,null,"Ｇ",null,null,null,null,null,null,null,"消費税額等"]
[null,null,"C",null,"  ",null,"契約額 ( A + B )",null,null,null,null,null,null,null,null,null,null,null,null,null,{"$f":"IF(ISERROR(U24+U25),\"\",U24+U25)","v":0},null,null,null,null,null,null,null,null,null,null,null,null,null,null,null,null,null,null,null,null,null,null,null,null,null,null,null,null,null,"（Ｆ×",null,10,null,"％）",null,null,null,null,null,{"$f":"TRUNC(BI24*10/100)","v":0}]
[null,null,"Ｄ",null,null,null,"出来高査定日",null,null,null,null,null,null,null,null,null,null,null,null,null,null,null,null,null,null,null,null,"年",null,null,null,null,null,"月末",null,null,null,null,null,null,"Ｈ",null,"今回",null,null,null,null,null,"請求額（税抜）"]
[null,null,null,null,null,null,"累計出来高(税抜)\n(別紙内訳書より転記)",null,null,null,null,null,null,null,null,null,null,null,null,null,null,null,null,null,null,null,null,null,null,null,null,null,null,null,null,null,null,null,null,null,null,null,null,null,null,null,"Ｅ　-　Ｆ",null,null,null,null,null,null,null,null,null,null,null,null,null,{"$f":"+U32-BI24","v":0}]
[null,null,null,null,null,null,null,null,null,null,null,null,null,null,null,null,null,null,null,null,null,null,null,null,null,null,null,null,null,null,null,null,null,null,null,null,null,null,null,null,"Ｉ",null,null,null,null,null,null,null,"消費税額等"]
[null,null,"E",null,"出来高保留後金額 ",null,null,null,null,null,null,null,null,null,null,null,null,null,null,null,null,null,null,null,null,null,null,null,null,null,null,null,null,null,null,null,null,null,null,null,null,null,null,null,null,null,{"$f":"IF(AND(N25=10,BA26=10),\"（出来高払はH×Bの税率）\",IF(AND(N25=8,BA26=8),\"（出来高払はH×Bの税率）\",IF(N25=\"※\",\"（別紙内訳書記載額－Ｇ）\",\"(E×Bの消費税率－G)\")))","v":"（出来高払はH×Bの税率）"},null,null,null,null,null,null,null,null,null,null,null,null,null,{"$f":"IF(ISERROR(ROUNDDOWN(U32*10/100-BI26,0)),\"\",ROUNDDOWN(U32*10/100-BI26,0))","v":0}]
[null,null,null,null,null,null,"Ｄ","×",null,null,90,null,null,null,null,"％",null,null,null,null,null,null,null,null,null,null,null,null,null,null,null,null,null,null,null,null,null,null,null,null,"Ｊ",null,"今　回　税　込　請　求　額"]
[null,null,null,null,"(原則90%万単位未満切り捨て）",null,null,null,null,null,null,null,null,null,null,null,null,null,null,null,{"$f":"IF(U29=U24,U24,ROUNDDOWN(U29*K31/100,-4))","v":0},null,null,null,null,null,null,null,null,null,null,null,null,null,null,null,null,null,null,null,null,null,"Ｈ　+　Ｉ",null,null,null,null,null,null,null,null,null,null,null,null,null,null,null,null,null,{"$f":"IF(ISERROR(+BI28+BI30),\"\",+BI28+BI30)","v":0}]
[]
[]
[]
[null,null,null,"福田組使用欄"]
[]
[]
[]
[]
[]
[]
[null,null,null,"<　検印欄　>"]
[null,null,null,"支　払",null,null,null,null,null,null,null,null,null,null,null,null,null,null,null,"所　管",null,null,null,null,null,null,null,null,null,null,null,null,null,null,"作業所",null,null,null,"工　　事",null,null,null,null,null,null,null,null,null,null,null,null,null,null,null,null,null,null,null,null,null,null,null,null,null,"　　事　務"]
[]
[]
[]
[null,null,null,null,null,null,null,null,null,null,null,null,null,null,null,null,null,null,null,null,null,null,null,null,null,null,null,null,null,null,null,null,null,null,null,null,null,null,null,null,null,null,null,null,null,null,null,null,null,null,null,null,null,null,null,"指定請求書　2023年6月19日改訂"]
[]
[]
[null,null,"<現場保管用>",null,null,null,null,null,null,null,null,null,null,null,null,null,null,null,null,null,null,null,null,null,null,null,null,null,null,null,null,null,null,null,null,null,null,null,null,null,null,null,null,null,null,null,null,null,null,null,null,null,null,null,null,{"$f":"+BD1","v":0},null,null,null,null,null,null,"年",null,{"$f":"+BM1","v":0},"月",{"$f":"+BO1","v":0},"日"]
["請　求　書　（工事請負）"]
[null,null,"株式会社　福田組　御 中"]
[null,null,null,null,null,null,null,null,null,null,null,null,null,null,null,null,null,null,null,null,null,null,null,null,null,null,null,null,null,null,null,null,null,null,null,"取引先コード",null,null,null,null,null,null,null,null,null,null,{"$f":"AU4","v":""},null,null,null,{"$f":"AY4","v":""},{"$f":"AZ4","v":""},null,null,{"$f":"BC4","v":""},null,null,{"$f":"BF4","v":""},null,null,null,{"$f":"BJ4","v":""},null,null,{"$f":"BM4","v":""}]
[]
[null,null,null,null,null,null,null,null,null,null,null,null,null,null,null,null,null,null,null,null,null,null,null,null,null,null,null,null,null,null,null,null,null,null,null,null,null,null,null,null,null,null,null,"〒",null,{"$f":"AT6","v":0},null,null,"-",null,{"$f":"AY6","v":0}]
[null,null,null,null,null,null,null,null,null,null,null,null,null,null,null,null,null,null,null,null,null,null,null,null,null,null,null,null,null,null,null,null,null,null,null,null,null,null,"住所",null,null,null,null,{"$f":"AR7","v":0}]
[null,null,null,"下記の金額を請求します。"]
[null,null,null,{"$f":"D9","v":0},null,null,null,null,null,null,null,null,null,null,null,null,null,null,null,null,null,null,null,null,null,null,null,null,null,null,null,null,null,null,null,null,null,null,"氏名",null,null,null,null,{"$f":"AR9","v":0}]
[null,null,null,null,null,null,null,null,null,null,null,null,null,null,null,null,null,null,null,null,null,null,null,null,null,null,null,null,null,null,null,null,null,null,null,null,null,null,null,null,null,null,null,{"$f":"AR10","v":0},null,null,null,null,null,null,null,null,null,null,null,null,null,null,null,null,null,null,null,null,null,null,"㊞"]
[null,null,null,null,null,null,null,null,null,null,null,null,null,null,null,null,null,null,null,null,null,null,null,null,null,null,null,null,null,null,null,null,null,null,null,null,null,null,null,null,null,null,null,"電　話",null,null,null,{"$f":"AV11","v":0}]
[null,null,null,null,null,null,null,null,null,null,null,null,null,null,null,null,null,null,null,null,null,null,null,null,null,null,null,null,null,null,null,null,null,null,null,null,null,null,null,null,null,null,null,"担当者",null,null,null,{"$f":"AV12","v":0}]
[null,null,null,"工事名",null,null,null,null,null,null,null,null,null,{"$f":"N13","v":0},null,null,null,null,null,null,null,{"$f":"V13","v":0},null,null,null,null,null,null,null,null,null,null,null,null,null,null,null,null,null,null,null,null,null,{"$f":"AR13","v":"適格請求書発行事業者未登録"},null,null,null,null,null,null,null,null,null,null,null,null,null,null,null,{"$f":"BH13","v":""}]
[]
[null,null,null,"工事内容",null,null,null,null,null,null,null,null,null,{"$f":"N15","v":0},null,null,null,null,null,null,null,null,null,null,null,null,null,null,null,null,null,null,null,null,null,null,null,null,null,null,null,null,null,"振込先銀行口座",null,null,null,null,null,null,null,{"$f":"AZ15","v":"【エラー】振込先銀行口座が未設定です。"}]
[null,null,null,null,null,null,null,null,null,null,null,null,null,null,null,null,null,null,null,null,null,null,null,null,null,null,null,null,null,null,null,null,null,null,null,null,null,null,null,null,null,null,null,{"$f":"AR16","v":"金融機関：　　　　　　　　　　　　店名："}]
[null,null,null,"工事場所",null,null,null,null,null,null,null,null,null,{"$f":"N17","v":0},null,null,null,null,null,null,null,null,null,null,null,null,null,null,null,null,null,null,null,null,null,null,null,null,null,null,null,null,null,{"$f":"AR17","v":"預金種別：　　　　　　　  　口座番号："}]
[null,null,null,null,null,null,null,null,null,null,null,null,null,null,null,null,null,null,null,null,null,null,null,null,null,null,null,null,null,null,null,null,null,null,null,null,null,null,null,null,null,null,null,{"$f":"AR18","v":"口座名義： "}]
[]
[null,null,null,"注文書番号",null,null,null,null,null,null,null,null,null,{"$f":"N20","v":0},null,null,{"$f":"Q20","v":0},null,null,{"$f":"T20","v":0},null,null,{"$f":"W20","v":0},null,null,{"$f":"Z20","v":0},null,null,{"$f":"AC20","v":0},null,null,{"$f":"AF20","v":0},null,null,{"$f":"AI20","v":0},null,null,{"$f":"AL20","v":0},null,null,{"$f":"AO20","v":0},null,null,{"$f":"AR20","v":0}]
[]
[null,null,"今　　回　　請　　求　　額　　算　　定　　内　　訳"]
[null,null,"上 記 契 約 コ ー ド の 契 約 累 計 金 額",null,null,null,null,null,null,null,null,null,null,null,null,null,null,null,null,null,null,null,null,null,null,null,null,null,null,null,null,null,null,null,null,null,null,null,null,null,"Ｆ",null,"前回\nまで\n累計",null,null,null,null,null,"請求額（税抜）"]
[null,null,"A",null,"工 　  事　   価    格",null,"工事価格",null,null,null,null,null,null,null,null,null,null,null,null,null,{"$f":"+U24","v":0},null,null,null,null,null,null,null,null,null,null,null,null,null,null,null,null,null,null,null,null,null,null,null,null,null,null,"（前回のＥの欄を転記）",null,null,null,null,null,null,null,null,null,null,null,null,{"$f":"+BI24","v":0}]
[null,null,"B",null,null,null,"消費税等",null,null,null,"(A×",null,null,{"$f":"N25","v":10},null,null,"％",null,")",null,{"$f":"+U25","v":0},null,null,null,null,null,null,null,null,null,null,null,null,null,null,null,null,null,null,null,"Ｇ",null,null,null,null,null,null,null,"消費税額等"]
[null,null,"C",null,"  ",null,"契約額    ( A + B )",null,null,null,null,null,null,null,null,null,null,null,null,null,{"$f":"U26","v":0},null,null,null,null,null,null,null,null,null,null,null,null,null,null,null,null,null,null,null,null,null,null,null,null,null,null,null,null,null,"（Ｆ×",null,{"$f":"BA26","v":10},null,"％）",null,null,null,null,null,{"$f":"+BI26","v":0}]
[null,null,"Ｄ",null,null,null,"出来高査定日",null,null,null,null,null,null,null,null,null,null,null,null,null,null,{"$f":"V27","v":0},null,null,null,null,null,"年",null,{"$f":"+AD27","v":0},null,null,null,"月末",null,null,null,null,null,null,"Ｈ",null,"今回",null,null,null,null,null,"請求額（税抜）"]
[null,null,null,null,null,null,"累計出来高(税抜)\n(別紙内訳書より転記)",null,null,null,null,null,null,null,null,null,null,null,null,null,null,null,null,null,null,null,null,null,null,null,null,null,null,null,null,null,null,null,null,null,null,null,null,null,null,null,"Ｅ　-　Ｆ",null,null,null,null,null,null,null,null,null,null,null,null,null,{"$f":"+U82-BI74","v":0}]
[null,null,null,null,null,null,null,null,null,null,null,null,null,null,null,null,null,null,null,null,{"$f":"+U29","v":0},null,null,null,null,null,null,null,null,null,null,null,null,null,null,null,null,null,null,null,"Ｉ",null,null,null,null,null,null,null,"消費税額等"]
[null,null,"E",null,"出来高保留後金額 ",null,null,null,null,null,null,null,null,null,null,null,null,null,null,null,null,null,null,null,null,null,null,null,null,null,null,null,null,null,null,null,null,null,null,null,null,null,null,null,null,null,{"$f":"AU30","v":"（出来高払はH×Bの税率）"},null,null,null,null,null,null,null,null,null,null,null,null,null,{"$f":"+BI30","v":0}]
[null,null,null,null,null,null,"Ｄ","×",null,null,{"$f":"+K31","v":90},null,null,null,null,"％",null,null,null,null,null,null,null,null,null,null,null,null,null,null,null,null,null,null,null,null,null,null,null,null,"Ｊ",null,"今　回　税　込　請　求　額"]
[null,null,null,null,"(原則90%万単位未満切り捨て）",null,null,null,null,null,null,null,null,null,null,null,null,null,null,null,{"$f":"+U32","v":0},null,null,null,null,null,null,null,null,null,null,null,null,null,null,null,null,null,null,null,null,null,"Ｈ　+　Ｉ",null,null,null,null,null,null,null,null,null,null,null,null,null,null,null,null,null,{"$f":"BI32","v":0}]
[]
[]
[]
[null,null,null,"福田組使用欄"]
[]
[]
[]
[]
[]
[]
[]
[]
[]
[]
[]
[]
[]
[null,null,"<支店保管用>",null,null,null,null,null,null,null,null,null,null,null,null,null,null,null,null,null,null,null,null,null,null,null,null,null,null,null,null,null,null,null,null,null,null,null,null,null,null,null,null,null,null,null,null,null,null,null,null,null,null,null,null,{"$f":"+BD51","v":0},null,null,null,null,null,null,"年",null,{"$f":"+BM51","v":0},"月",{"$f":"+BO51","v":0},"日"]
["請　求　書　（工事請負）"]
[null,null,"株式会社　福田組　御 中"]
[null,null,null,null,null,null,null,null,null,null,null,null,null,null,null,null,null,null,null,null,null,null,null,null,null,null,null,null,null,null,null,null,null,null,null,"取引先コード",null,null,null,null,null,null,null,null,null,null,{"$f":"AU54","v":""},null,null,null,{"$f":"AY54","v":""},{"$f":"AZ54","v":""},null,null,{"$f":"BC54","v":""},null,null,{"$f":"BF54","v":""},null,null,null,{"$f":"BJ54","v":""},null,null,{"$f":"BM54","v":""}]
[]
[null,null,null,null,null,null,null,null,null,null,null,null,null,null,null,null,null,null,null,null,null,null,null,null,null,null,null,null,null,null,null,null,null,null,null,null,null,null,null,null,null,null,null,"〒",null,{"$f":"AT56","v":0},null,null,"-",null,{"$f":"AY56","v":0}]
[null,null,null,null,null,null,null,null,null,null,null,null,null,null,null,null,null,null,null,null,null,null,null,null,null,null,null,null,null,null,null,null,null,null,null,null,null,null,"住所",null,null,null,null,{"$f":"AR57","v":0}]
[null,null,null,"下記の金額を請求します。"]
[null,null,null,{"$f":"D59","v":0},null,null,null,null,null,null,null,null,null,null,null,null,null,null,null,null,null,null,null,null,null,null,null,null,null,null,null,null,null,null,null,null,null,null,"氏名",null,null,null,null,{"$f":"AR59","v":0}]
[null,null,null,null,null,null,null,null,null,null,null,null,null,null,null,null,null,null,null,null,null,null,null,null,null,null,null,null,null,null,null,null,null,null,null,null,null,null,null,null,null,null,null,{"$f":"AR60","v":0},null,null,null,null,null,null,null,null,null,null,null,null,null,null,null,null,null,null,null,null,null,null,"㊞"]
[null,null,null,null,null,null,null,null,null,null,null,null,null,null,null,null,null,null,null,null,null,null,null,null,null,null,null,null,null,null,null,null,null,null,null,null,null,null,null,null,null,null,null,"電　話",null,null,null,{"$f":"AV61","v":0}]
[null,null,null,null,null,null,null,null,null,null,null,null,null,null,null,null,null,null,null,null,null,null,null,null,null,null,null,null,null,null,null,null,null,null,null,null,null,null,null,null,null,null,null,"担当者",null,null,null,{"$f":"AV62","v":0}]
[null,null,null,"工事名",null,null,null,null,null,null,null,null,null,{"$f":"N63","v":0},null,null,null,null,null,null,null,{"$f":"V63","v":0},null,null,null,null,null,null,null,null,null,null,null,null,null,null,null,null,null,null,null,null,null,{"$f":"AR63","v":"適格請求書発行事業者未登録"},null,null,null,null,null,null,null,null,null,null,null,null,null,null,null,{"$f":"BH63","v":""}]
[]
[null,null,null,"工事内容",null,null,null,null,null,null,null,null,null,{"$f":"N65","v":0},null,null,null,null,null,null,null,null,null,null,null,null,null,null,null,null,null,null,null,null,null,null,null,null,null,null,null,null,null,"振込先銀行口座",null,null,null,null,null,null,null,{"$f":"AZ65","v":"【エラー】振込先銀行口座が未設定です。"}]
[null,null,null,null,null,null,null,null,null,null,null,null,null,null,null,null,null,null,null,null,null,null,null,null,null,null,null,null,null,null,null,null,null,null,null,null,null,null,null,null,null,null,null,{"$f":"AR66","v":"金融機関：　　　　　　　　　　　　店名："}]
[null,null,null,"工事場所",null,null,null,null,null,null,null,null,null,{"$f":"N67","v":0},null,null,null,null,null,null,null,null,null,null,null,null,null,null,null,null,null,null,null,null,null,null,null,null,null,null,null,null,null,{"$f":"AR67","v":"預金種別：　　　　　　　  　口座番号："}]
[null,null,null,null,null,null,null,null,null,null,null,null,null,null,null,null,null,null,null,null,null,null,null,null,null,null,null,null,null,null,null,null,null,null,null,null,null,null,null,null,null,null,null,{"$f":"AR68","v":"口座名義： "}]
[]
[null,null,null,"注文書番号",null,null,null,null,null,null,null,null,null,{"$f":"N70","v":0},null,null,{"$f":"Q70","v":0},null,null,{"$f":"T70","v":0},null,null,{"$f":"W70","v":0},null,null,{"$f":"Z70","v":0},null,null,{"$f":"AC70","v":0},null,null,{"$f":"AF70","v":0},null,null,{"$f":"AI70","v":0},null,null,{"$f":"AL70","v":0},null,null,{"$f":"AO70","v":0},null,null,{"$f":"AR70","v":0}]
[]
[null,null,"今　　回　　請　　求　　額　　算　　定　　内　　訳"]
[null,null,"上 記 契 約 コ ー ド の 契 約 累 計 金 額",null,null,null,null,null,null,null,null,null,null,null,null,null,null,null,null,null,null,null,null,null,null,null,null,null,null,null,null,null,null,null,null,null,null,null,null,null,"Ｆ",null,"前回\nまで\n累計",null,null,null,null,null,"請求額（税抜）"]
[null,null,"A",null,"工 　  事　   価    格",null,"工事価格",null,null,null,null,null,null,null,null,null,null,null,null,null,{"$f":"+U74","v":0},null,null,null,null,null,null,null,null,null,null,null,null,null,null,null,null,null,null,null,null,null,null,null,null,null,null,"（前回のＥの欄を転記）",null,null,null,null,null,null,null,null,null,null,null,null,{"$f":"+BI74","v":0}]
[null,null,"B",null,null,null,"消費税等",null,null,null,"(A×",null,null,{"$f":"N25","v":10},null,null,"％",null,")",null,{"$f":"+U25","v":0},null,null,null,null,null,null,null,null,null,null,null,null,null,null,null,null,null,null,null,"Ｇ",null,null,null,null,null,null,null,"消費税額等"]
[null,null,"C",null,"  ",null,"契約額    ( A + B )",null,null,null,null,null,null,null,null,null,null,null,null,null,{"$f":"U26","v":0},null,null,null,null,null,null,null,null,null,null,null,null,null,null,null,null,null,null,null,null,null,null,null,null,null,null,null,null,null,"（Ｆ×",null,{"$f":"BA76","v":10},null,"％）",null,null,null,null,null,{"$f":"+BI26","v":0}]
[null,null,"Ｄ",null,null,null,"出来高査定日",null,null,null,null,null,null,null,null,null,null,null,null,null,null,{"$f":"V77","v":0},null,null,null,null,null,"年",null,{"$f":"+AD77","v":0},null,null,null,"月末",null,null,null,null,null,null,"Ｈ",null,"今回",null,null,null,null,null,"請求額（税抜）"]
[null,null,null,null,null,null,"累計出来高(税抜)\n(別紙内訳書より転記)",null,null,null,null,null,null,null,null,null,null,null,null,null,null,null,null,null,null,null,null,null,null,null,null,null,null,null,null,null,null,null,null,null,null,null,null,null,null,null,"Ｅ　-　Ｆ",null,null,null,null,null,null,null,null,null,null,null,null,null,{"$f":"+U131-BI123","v":0}]
[null,null,null,null,null,null,null,null,null,null,null,null,null,null,null,null,null,null,null,null,{"$f":"+U29","v":0},null,null,null,null,null,null,null,null,null,null,null,null,null,null,null,null,null,null,null,"Ｉ",null,null,null,null,null,null,null,"消費税額等"]
[null,null,"E",null,"出来高保留後金額 ",null,null,null,null,null,null,null,null,null,null,null,null,null,null,null,null,null,null,null,null,null,null,null,null,null,null,null,null,null,null,null,null,null,null,null,null,null,null,null,null,null,{"$f":"AU80","v":"（出来高払はH×Bの税率）"},null,null,null,null,null,null,null,null,null,null,null,null,null,{"$f":"+BI30","v":0}]
[null,null,null,null,null,null,"Ｄ","×",null,null,{"$f":"+K81","v":90},null,null,null,null,"％",null,null,null,null,null,null,null,null,null,null,null,null,null,null,null,null,null,null,null,null,null,null,null,null,"Ｊ",null,"今　回　税　込　請　求　額"]
[null,null,null,null,"(原則90%万単位未満切り捨て）",null,null,null,null,null,null,null,null,null,null,null,null,null,null,null,{"$f":"+U32","v":0},null,null,null,null,null,null,null,null,null,null,null,null,null,null,null,null,null,null,null,null,null,"Ｈ　+　Ｉ",null,null,null,null,null,null,null,null,null,null,null,null,null,null,null,null,null,{"$f":"BI32","v":0}]
[]
[]
[]
[null,null,null,"福田組使用欄"]

{"sheet":"請求書入力例","index":4,"n_rows":48,"n_cols":67,"rows_kept":48,"cut":false,"hidden":false,"merged":[[29,5,29,37],[0,54,0,60],[3,45,3,48],[3,50,3,52],[3,53,3,55],[3,56,3,59],[3,60,3,62],[1,1,1,68],[5,42,5,43],[5,44,5,46],[5,47,5,48],[6,42,7,65],[7,66,7,67],[8,2,9,23],[8,42,8,63],[9,26,9,32],[9,42,9,63],[14,2,14,8],[14,12,14,35],[15,2,15,8],[15,42,15,65],[16,2,16,8],[16,12,16,35],[16,42,16,65],[10,42,10,45],[10,46,10,65],[11,42,11,45],[11,46,11,65],[12,2,12,8],[12,12,12,19],[12,20,12,35],[12,42,12,57],[12,58,12,65],[17,42,17,65],[19,2,19,8],[19,12,19,14],[19,15,19,17],[19,18,19,20],[19,21,19,23],[19,24,19,26],[19,27,19,29],[19,30,19,32],[19,33,19,35],[19,36,19,38],[19,39,19,41],[19,42,19,44],[19,45,19,46],[21,1,21,67],[22,1,22,37],[22,39,23,40],[22,41,25,44],[22,47,22,56],[22,67,23,67],[23,1,23,2],[23,5,23,17],[23,19,23,36],[23,46,23,57],[23,59,23,66],[24,1,24,2],[24,12,24,14],[24,15,24,16],[24,19,24,36],[24,39,25,40],[26,5,26,17],[26,20,26,25],[26,26,26,27],[26,28,26,31],[26,39,27,40],[24,47,24,56],[24,67,25,67],[25,1,25,2],[25,5,25,17],[25,19,25,36],[25,51,25,52],[25,59,25,66],[30,41,30,58],[30,59,30,66],[30,67,31,67],[31,3,31,18],[31,19,31,36],[31,41,31,58],[31,59,31,66],[28,67,29,67],[29,1,31,2],[29,45,29,58],[29,59,29,66],[30,6,30,8],[30,9,30,13],[30,14,30,17],[30,39,31,40],[26,41,29,44],[26,47,26,56],[27,5,28,17],[27,45,27,58],[27,59,27,66],[28,19,28,36],[28,39,29,40],[28,47,28,56],[26,1,28,2],[43,2,46,3],[43,18,46,19],[43,33,46,35],[40,2,40,7],[40,8,40,9],[40,12,40,16],[40,38,40,42],[40,43,40,44],[40,45,40,47]]}
[null,"<本支店提出用>",null,null,null,null,null,null,null,null,null,null,null,null,null,null,null,null,null,null,null,null,null,null,null,null,null,null,null,null,null,null,null,null,null,null,null,null,null,null,null,null,null,null,null,null,null,null,null,null,null,null,null,null,2023,null,null,null,null,null,null,"年",null,10,"月",31,"日"]
[null,"請　求　書　（工事請負）"]
[null,"株式会社　福田組　御 中"]
[null,null,null,null,null,null,null,null,null,null,null,null,null,null,null,null,null,null,null,null,null,null,null,null,null,null,null,null,null,null,null,null,null,null,"取引先コード",null,null,null,null,null,null,null,null,null,null,1,null,null,null,2,3,null,null,4,null,null,5,null,null,null,6,null,null,7]
[]
[null,null,null,null,null,null,null,null,null,null,null,null,null,null,null,null,null,null,null,null,null,null,null,null,null,null,null,null,null,null,null,null,null,null,null,null,null,null,null,null,null,null,"〒",null,123,null,null,"-",null,4567]
[null,null,null,null,null,null,null,null,null,null,null,null,null,null,null,null,null,null,null,null,null,null,null,null,null,null,null,null,null,null,null,null,null,null,null,null,null,"住所",null,null,null,null,"○○県〇〇市〇〇区〇〇ビル5階\t"]
[null,null,"下記の金額を請求します。"]
[null,null,880000000,null,null,null,null,null,null,null,null,null,null,null,null,null,null,null,null,null,null,null,null,null,null,null,null,null,null,null,null,null,null,null,null,null,null,"氏名",null,null,null,null,"株式会社　〇〇〇〇"]
[null,null,null,null,null,null,null,null,null,null,null,null,null,null,null,null,null,null,null,null,null,null,null,null,null,null,null,null,null,null,null,null,null,null,null,null,null,null,null,null,null,null,"代表取締役社長　〇〇　〇〇",null,null,null,null,null,null,null,null,null,null,null,null,null,null,null,null,null,null,null,null,null,null,"㊞"]
[null,null,null,null,null,null,null,null,null,null,null,null,null,null,null,null,null,null,null,null,null,null,null,null,null,null,null,null,null,null,null,null,null,null,null,null,null,null,null,null,null,null,"電　話",null,null,null,"012-345-6789"]
[null,null,null,null,null,null,null,null,null,null,null,null,null,null,null,null,null,null,null,null,null,null,null,null,null,null,null,null,null,null,null,null,null,null,null,null,null,null,null,null,null,null,"担当者",null,null,null,"経理部　〇〇　〇〇"]
[null,null,"工事名",null,null,null,null,null,null,null,null,null,12345678,null,null,null,null,null,null,null,"○○新築工事",null,null,null,null,null,null,null,null,null,null,null,null,null,null,null,null,null,null,null,null,null,"適格請求書発行事業者登録番号",null,null,null,null,null,null,null,null,null,null,null,null,null,null,null,"T1234567890123"]
[]
[null,null,"工事内容",null,null,null,null,null,null,null,null,null,"○○設備工事",null,null,null,null,null,null,null,null,null,null,null,null,null,null,null,null,null,null,null,null,null,null,null,null,null,null,null,null,null,"振込先銀行口座",null,null,null,null,null,null,null,""]
[null,null,null,null,null,null,null,null,null,null,null,null,null,null,null,null,null,null,null,null,null,null,null,null,null,null,null,null,null,null,null,null,null,null,null,null,null,null,null,null,null,null,"金融機関： ○○銀行　　　店名： ○○支店　"]
[null,null,"工事場所",null,null,null,null,null,null,null,null,null,"○○県〇〇市〇〇〇",null,null,null,null,null,null,null,null,null,null,null,null,null,null,null,null,null,null,null,null,null,null,null,null,null,null,null,null,null,"預金種別：　当座　　口座番号： 1234567"]
[null,null,null,null,null,null,null,null,null,null,null,null,null,null,null,null,null,null,null,null,null,null,null,null,null,null,null,null,null,null,null,null,null,null,null,null,null,null,null,null,null,null,"口座名義： カ）〇〇〇〇〇"]
[]
[null,null,"注文書番号",null,null,null,null,null,null,null,null,null,"1",null,null,"2",null,null,"3",null,null,"4",null,null,"5",null,null,"6",null,null,"7",null,null,"8",null,null,"9",null,null,"1",null,null,"0"]
[]
[null,"今　　回　　請　　求　　額　　算　　定　　内　　訳"]
[null,"上 記 契 約 コ ー ド の 契 約 累 計 金 額",null,null,null,null,null,null,null,null,null,null,null,null,null,null,null,null,null,null,null,null,null,null,null,null,null,null,null,null,null,null,null,null,null,null,null,null,null,"Ｆ",null,"前回\nまで\n累計",null,null,null,null,null,"請求額（税抜）"]
[null,"A",null,"工 　  事　   価    格",null,"工事価格",null,null,null,null,null,null,null,null,null,null,null,null,null,1000000000,null,null,null,null,null,null,null,null,null,null,null,null,null,null,null,null,null,null,null,null,null,null,null,null,null,null,"（前回のＥの欄を転記）",null,null,null,null,null,null,null,null,null,null,null,null,10000000]
[null,"B",null,null,null,"消費税等",null,null,null,"(A×",null,null,10,null,null,"％",null,")",null,100000000,null,null,null,null,null,null,null,null,null,null,null,null,null,null,null,null,null,null,null,"Ｇ",null,null,null,null,null,null,null,"消費税額等"]
[null,"C",null,"  ",null,"契約額 ( A + B )",null,null,null,null,null,null,null,null,null,null,null,null,null,1100000000,null,null,null,null,null,null,null,null,null,null,null,null,null,null,null,null,null,null,null,null,null,null,null,null,null,null,null,null,null,"（Ｆ×",null,10,null,"％）",null,null,null,null,null,1000000]
[null,"Ｄ",null,null,null,"出来高査定日",null,null,null,null,null,null,null,null,null,null,null,null,null,null,2023,null,null,null,null,null,"年",null,10,null,null,null,"月末",null,null,null,null,null,null,"Ｈ",null,"今回",null,null,null,null,null,"請求額（税抜）"]
[null,null,null,null,null,"累計出来高(税抜)\n(別紙内訳書より転記)",null,null,null,null,null,null,null,null,null,null,null,null,null,null,null,null,null,null,null,null,null,null,null,null,null,null,null,null,null,null,null,null,null,null,null,null,null,null,null,"Ｅ　-　Ｆ",null,null,null,null,null,null,null,null,null,null,null,null,null,800000000]
[null,null,null,null,null,null,null,null,null,null,null,null,null,null,null,null,null,null,null,900000000,null,null,null,null,null,null,null,null,null,null,null,null,null,null,null,null,null,null,null,"Ｉ",null,null,null,null,null,null,null,"消費税額等"]
[null,"E",null,null,null,"出来高保留後金額 ",null,null,null,null,null,null,null,null,null,null,null,null,null,null,null,null,null,null,null,null,null,null,null,null,null,null,null,null,null,null,null,null,null,null,null,null,null,null,null,"（出来高払はH×Bの税率）",null,null,null,null,null,null,null,null,null,null,null,null,null,80000000]
[null,null,null,null,null,"Ｄ","×",null,null,90,null,null,null,null,"％",null,null,null,null,null,null,null,null,null,null,null,null,null,null,null,null,null,null,null,null,null,null,null,null,"Ｊ",null,"今　回　税　込　請　求　額"]
[null,null,null,"(原則90%万単位未満切り捨て）",null,null,null,null,null,null,null,null,null,null,null,null,null,null,null,810000000,null,null,null,null,null,null,null,null,null,null,null,null,null,null,null,null,null,null,null,null,null,"Ｈ　+　Ｉ",null,null,null,null,null,null,null,null,null,null,null,null,null,null,null,null,null,880000000]
[]
[]
[]
[null,null,"福田組使用欄"]
[]
[]
[]
[]
[]
[]
[null,null,"<　検印欄　>"]
[null,null,"支　払",null,null,null,null,null,null,null,null,null,null,null,null,null,null,null,"所　管",null,null,null,null,null,null,null,null,null,null,null,null,null,null,"作業所",null,null,null,"工　　事",null,null,null,null,null,null,null,null,null,null,null,null,null,null,null,null,null,null,null,null,null,null,null,null,null,"　　事　務"]
[]
[]
[]
[null,null,null,null,null,null,null,null,null,null,null,null,null,null,null,null,null,null,null,null,null,null,null,null,null,null,null,null,null,null,null,null,null,null,null,null,null,null,null,null,null,null,null,null,null,null,null,null,null,null,null,null,null,null,"指定請求書　2023年6月19日改訂"]